[Event "Early-Titled-Tuesday-Blitz-October-24-2023"]
[Site "Chess.com"]
[Date "2023.10.24"]
[Round "7"]
[White "c63_amg"]
[Black "Meri-Arabidze"]
[Result "1-0"]
[WhiteElo "2818"]
[BlackElo "2589"]
[TimeControl "180+1"]
[EndTime "9:16:31 PDT"]
[Termination "c63_amg won by resignation"]

1. e4 {[%clk 0:03:00.9]} 1... d6 {[%clk 0:02:55.1]} 2. d4 {[%clk 0:03:00.7]}
2... g6 {[%clk 0:02:55.2]} 3. Nc3 {[%clk 0:03:00.4]} 3... Bg7 {[%clk 0:02:55.3]}
4. Bf4 {[%clk 0:02:57.5]} 4... Nd7 {[%clk 0:02:52.8]} 5. Qd2 {[%clk 0:02:52.5]}
5... c5 {[%clk 0:02:52.4]} 6. dxc5 {[%clk 0:02:40]} 6... Nxc5 {[%clk 0:02:53.3]}
7. Nf3 {[%clk 0:02:34.5]} 7... Nf6 {[%clk 0:02:48.6]} 8. e5 {[%clk 0:02:26.3]}
8... Nh5 {[%clk 0:02:48.6]} 9. Bh6 {[%clk 0:02:25]} 9... O-O {[%clk 0:02:30.6]}
10. Bxg7 {[%clk 0:02:23.1]} 10... Kxg7 {[%clk 0:02:28.8]} 11. O-O-O {[%clk
0:02:21.1]} 11... Bg4 {[%clk 0:02:08.8]} 12. exd6 {[%clk 0:02:19.3]} 12... Bxf3
{[%clk 0:02:07.3]} 13. Qd4+ {[%clk 0:02:10.6]} 13... Kg8 {[%clk 0:02:05.4]} 14.
Qxc5 {[%clk 0:02:07.7]} 14... b6 {[%clk 0:01:40.6]} 15. Qe3 {[%clk 0:02:03.3]}
15... Bxd1 {[%clk 0:01:13.1]} 16. dxe7 {[%clk 0:02:03.5]} 16... Qd7 {[%clk
0:00:50]} 17. exf8=Q+ {[%clk 0:02:03.1]} 17... Rxf8 {[%clk 0:00:50.9]} 18. Nxd1
{[%clk 0:02:03.4]} 18... Re8 {[%clk 0:00:45.5]} 19. Qd2 {[%clk 0:01:55.7]} 19...
Qa4 {[%clk 0:00:45.1]} 20. Nc3 {[%clk 0:01:44]} 20... Qg4 {[%clk 0:00:43.5]} 21.
f3 {[%clk 0:01:39.5]} 21... Qh4 {[%clk 0:00:42.3]} 22. Bb5 {[%clk 0:01:35.3]}
22... Rd8 {[%clk 0:00:42.3]} 23. Qe3 {[%clk 0:01:31.9]} 23... Ng3 {[%clk
0:00:30.6]} 24. Re1 {[%clk 0:01:06.4]} 24... Qxh2 {[%clk 0:00:27.2]} 25. Qf2
{[%clk 0:01:04.3]} 25... Nf5 {[%clk 0:00:23.2]} 26. Bd3 {[%clk 0:01:03.4]} 26...
Nh4 {[%clk 0:00:16.1]} 27. Bf1 {[%clk 0:00:57.4]} 27... Nf5 {[%clk 0:00:11.7]}
28. a3 {[%clk 0:00:55.9]} 28... h5 {[%clk 0:00:10.9]} 29. Kb1 {[%clk 0:00:50.7]}
29... h4 {[%clk 0:00:11]} 30. Ne4 {[%clk 0:00:47.2]} 30... Qf4 {[%clk
0:00:09.1]} 31. Bd3 {[%clk 0:00:44.5]} 31... Nd4 {[%clk 0:00:06.1]} 32. Rh1
{[%clk 0:00:41.2]} 32... Nf5 {[%clk 0:00:06.3]} 33. Nf6+ {[%clk 0:00:38.4]}
33... Kg7 {[%clk 0:00:06.4]} 34. Bxf5 {[%clk 0:00:38.1]} 34... Qxf5 {[%clk
0:00:04.9]} 35. Ne4 {[%clk 0:00:37.2]} 35... g5 {[%clk 0:00:04.6]} 36. Qe3
{[%clk 0:00:35.5]} 36... f6 {[%clk 0:00:04.7]} 37. Qc3 {[%clk 0:00:36.2]} 37...
Kg6 {[%clk 0:00:04.7]} 38. Re1 {[%clk 0:00:36]} 38... Rd7 {[%clk 0:00:04.7]} 39.
Qb3 {[%clk 0:00:34.9]} 39... Qe5 {[%clk 0:00:04.3]} 40. Ka2 {[%clk 0:00:30]}
40... h3 {[%clk 0:00:03.4]} 41. gxh3 {[%clk 0:00:29.6]} 41... Rh7 {[%clk
0:00:03.1]} 42. Qg8+ {[%clk 0:00:28]} 42... Rg7 {[%clk 0:00:03.5]} 43. Qc4
{[%clk 0:00:24.9]} 43... Rh7 {[%clk 0:00:03.7]} 44. Rd1 {[%clk 0:00:20.5]} 44...
Rxh3 {[%clk 0:00:03.1]} 45. Rd5 {[%clk 0:00:21.1]} 45... Qf4 {[%clk 0:00:02.1]}
46. Rd6 {[%clk 0:00:19.1]} 46... Rxf3 {[%clk 0:00:02.3]} 47. Rxf6+ {[%clk
0:00:19.7]} 47... Qxf6 {[%clk 0:00:02.7]} 48. Nxf6 {[%clk 0:00:20.6]} 48... Rxf6
{[%clk 0:00:03.3]} 49. Qe4+ {[%clk 0:00:21.1]} 49... Kh5 {[%clk 0:00:02.8]} 50.
Qh7+ {[%clk 0:00:21.7]} 50... Kg4 {[%clk 0:00:03]} 51. Qxa7 {[%clk 0:00:22.6]}
51... Kf4 {[%clk 0:00:02.2]} 52. Qc7+ {[%clk 0:00:22.6]} 52... Kf5 {[%clk
0:00:02.3]} 53. Qd7+ {[%clk 0:00:21]} 53... Kf4 {[%clk 0:00:02.2]} 54. Qe7
{[%clk 0:00:21.1]} 54... Kf5 {[%clk 0:00:02.3]} 55. a4 {[%clk 0:00:21.1]} 55...
g4 {[%clk 0:00:02.8]} 56. Qe3 {[%clk 0:00:20]} 56... Rg6 {[%clk 0:00:02.9]} 57.
Qd3+ {[%clk 0:00:20.2]} 57... Kg5 {[%clk 0:00:03.1]} 58. Qg3 {[%clk 0:00:20.8]}
58... Rf6 {[%clk 0:00:03.5]} 59. b4 {[%clk 0:00:19]} 59... Rf3 {[%clk
0:00:03.6]} 60. Qe5+ {[%clk 0:00:19.8]} 60... Kh4 {[%clk 0:00:03.6]} 61. Qh2+
{[%clk 0:00:17.4]} 61... Rh3 {[%clk 0:00:03.4]} 62. Qf4 {[%clk 0:00:16.8]} 62...
Rf3 {[%clk 0:00:03.6]} 63. Qh6+ {[%clk 0:00:17.1]} 63... Kg3 {[%clk 0:00:03.6]}
64. Qxb6 {[%clk 0:00:18]} 64... Kg2 {[%clk 0:00:03.6]} 65. a5 {[%clk 0:00:17.9]}
65... g3 {[%clk 0:00:04.1]} 66. a6 {[%clk 0:00:18.7]} 66... Rf8 {[%clk
0:00:03.3]} 67. Qb7+ {[%clk 0:00:17.1]} 67... Kf1 {[%clk 0:00:03.7]} 68. Qh1+
{[%clk 0:00:13.9]} 68... Kf2 {[%clk 0:00:03.3]} 69. Qh6 {[%clk 0:00:14.6]} 69...
Rf3 {[%clk 0:00:02.4]} 70. a7 {[%clk 0:00:14.1]} 70... g2 {[%clk 0:00:03]} 71.
a8=Q {[%clk 0:00:13.4]} 71... g1=Q {[%clk 0:00:03.1]} 72. Qa7+ {[%clk
0:00:14.1]} 72... Kf1 {[%clk 0:00:02.1]} 73. Qxg1+ {[%clk 0:00:14.6]} 73... Kxg1
{[%clk 0:00:02.2]} 74. Qg6+ {[%clk 0:00:14.9]} 1-0

[Event "Early-Titled-Tuesday-Blitz-October-24-2023"]
[Site "Chess.com"]
[Date "2023.10.24"]
[Round "7"]
[White "Manukyan_Artak"]
[Black "AsselLesbekova"]
[Result "1/2-1/2"]
[WhiteElo "2404"]
[BlackElo "2247"]
[TimeControl "180+1"]
[EndTime "9:16:31 PDT"]
[Termination "Game drawn by repetition"]

1. e4 {[%clk 0:03:00.9]} 1... e5 {[%clk 0:02:59.7]} 2. Nf3 {[%clk 0:03:00.4]}
2... Nf6 {[%clk 0:02:59.7]} 3. Nxe5 {[%clk 0:02:59.7]} 3... Nxe4 {[%clk
0:02:58.7]} 4. Qe2 {[%clk 0:02:58.6]} 4... Qe7 {[%clk 0:02:59]} 5. Qxe4 {[%clk
0:02:58.8]} 5... d6 {[%clk 0:02:59.6]} 6. d4 {[%clk 0:02:57.8]} 6... dxe5 {[%clk
0:02:59.3]} 7. Qxe5 {[%clk 0:02:56.5]} 7... Qxe5+ {[%clk 0:02:56.9]} 8. dxe5
{[%clk 0:02:57.4]} 8... Bf5 {[%clk 0:02:57.1]} 9. c3 {[%clk 0:02:56.4]} 9... Nc6
{[%clk 0:02:56.5]} 10. Bf4 {[%clk 0:02:53.2]} 10... O-O-O {[%clk 0:02:50.6]} 11.
Bb5 {[%clk 0:02:50.8]} 11... Nxe5 {[%clk 0:02:44.1]} 12. Bxe5 {[%clk 0:02:49.6]}
12... Rd5 {[%clk 0:02:44.3]} 13. Bd4 {[%clk 0:01:40.9]} 13... Rxb5 {[%clk
0:02:31.1]} 14. c4 {[%clk 0:01:41.1]} 14... Rb4 {[%clk 0:02:16.8]} 15. Nd2
{[%clk 0:01:34.4]} 15... c5 {[%clk 0:02:12.6]} 16. Bc3 {[%clk 0:01:27.1]} 16...
Rb6 {[%clk 0:02:12.8]} 17. O-O-O {[%clk 0:01:28]} 17... f6 {[%clk 0:01:58]} 18.
Rhe1 {[%clk 0:01:20]} 18... Bd6 {[%clk 0:01:45.3]} 19. g3 {[%clk 0:01:13.4]}
19... Bc7 {[%clk 0:01:26.4]} 20. Ne4 {[%clk 0:01:01.4]} 20... Rc6 {[%clk
0:01:25.6]} 21. Rd5 {[%clk 0:00:54.3]} 21... Be6 {[%clk 0:01:10.6]} 22. Rxc5
{[%clk 0:00:53.3]} 22... Rxc5 {[%clk 0:01:10.8]} 23. Nxc5 {[%clk 0:00:48.8]}
23... Bxc4 {[%clk 0:01:11.4]} 24. b3 {[%clk 0:00:45.4]} 24... Bb5 {[%clk
0:01:01.6]} 25. Ne6 {[%clk 0:00:44.4]} 25... Bb6 {[%clk 0:00:41.7]} 26. Nxg7
{[%clk 0:00:35.4]} 26... Bxf2 {[%clk 0:00:42]} 27. Re6 {[%clk 0:00:35.5]} 27...
Rd8 {[%clk 0:00:31]} 28. Rxf6 {[%clk 0:00:31.2]} 28... Be3+ {[%clk 0:00:30.3]}
29. Kc2 {[%clk 0:00:29.4]} 29... Bd3+ {[%clk 0:00:29.7]} 30. Kb2 {[%clk
0:00:29.6]} 30... Bd4 {[%clk 0:00:22.9]} 31. Bxd4 {[%clk 0:00:26.5]} 31... Rxd4
{[%clk 0:00:23.8]} 32. Rf8+ {[%clk 0:00:21.4]} 32... Rd8 {[%clk 0:00:24]} 33.
Rxd8+ {[%clk 0:00:20.5]} 33... Kxd8 {[%clk 0:00:24.3]} 34. Kc3 {[%clk
0:00:20.7]} 34... Bf1 {[%clk 0:00:23.3]} 35. Ne6+ {[%clk 0:00:20.1]} 35... Ke7
{[%clk 0:00:20.4]} 36. Ng5 {[%clk 0:00:18.8]} 36... h6 {[%clk 0:00:19.3]} 37.
Ne4 {[%clk 0:00:19.2]} 37... b6 {[%clk 0:00:18.8]} 38. Kd4 {[%clk 0:00:18.7]}
38... Ke6 {[%clk 0:00:18.8]} 39. b4 {[%clk 0:00:17.4]} 39... Ba6 {[%clk
0:00:18.8]} 40. a4 {[%clk 0:00:16.4]} 40... Bb7 {[%clk 0:00:19.1]} 41. a5 {[%clk
0:00:15.9]} 41... Ba8 {[%clk 0:00:17.5]} 42. axb6 {[%clk 0:00:15.7]} 42... axb6
{[%clk 0:00:17.7]} 43. g4 {[%clk 0:00:16.3]} 43... Bc6 {[%clk 0:00:16.6]} 44. h4
{[%clk 0:00:16.4]} 44... Ba8 {[%clk 0:00:14.4]} 45. Nf2 {[%clk 0:00:16]} 45...
Bf3 {[%clk 0:00:13.5]} 46. Ke3 {[%clk 0:00:16.2]} 46... Bc6 {[%clk 0:00:12.1]}
47. Nd3 {[%clk 0:00:13.3]} 47... Be8 {[%clk 0:00:10.4]} 48. Nf4+ {[%clk
0:00:12.2]} 48... Ke5 {[%clk 0:00:10.9]} 49. g5 {[%clk 0:00:12.5]} 49... hxg5
{[%clk 0:00:10.9]} 50. hxg5 {[%clk 0:00:13.4]} 50... Kf5 {[%clk 0:00:11.6]} 51.
g6 {[%clk 0:00:13.7]} 51... Kf6 {[%clk 0:00:09.4]} 52. Kd4 {[%clk 0:00:13.4]}
52... b5 {[%clk 0:00:08.7]} 53. Kc5 {[%clk 0:00:13.4]} 53... Kg7 {[%clk
0:00:08.3]} 54. Ne6+ {[%clk 0:00:12.9]} 54... Kxg6 {[%clk 0:00:08.4]} 55. Nc7
{[%clk 0:00:13.5]} 55... Bd7 {[%clk 0:00:08.2]} 56. Nxb5 {[%clk 0:00:14.4]}
56... Kf6 {[%clk 0:00:06.6]} 57. Nc7 {[%clk 0:00:13.8]} 57... Ke7 {[%clk
0:00:06]} 58. Nd5+ {[%clk 0:00:13.9]} 58... Kd8 {[%clk 0:00:06.5]} 59. Nb6
{[%clk 0:00:14]} 59... Be8 {[%clk 0:00:06.3]} 60. Nc4 {[%clk 0:00:14]} 60... Kc7
{[%clk 0:00:06.3]} 61. Nd6 {[%clk 0:00:14.6]} 61... Bh5 {[%clk 0:00:06.6]} 62.
b5 {[%clk 0:00:14.1]} 62... Bf3 {[%clk 0:00:07.3]} 63. b6+ {[%clk 0:00:15]}
63... Kb8 {[%clk 0:00:07.9]} 64. Nc4 {[%clk 0:00:13.4]} 64... Bh1 {[%clk
0:00:08.1]} 65. Ne5 {[%clk 0:00:14.1]} 65... Bg2 {[%clk 0:00:08.1]} 66. Nc6+
{[%clk 0:00:13.6]} 66... Bxc6 {[%clk 0:00:07.5]} 67. Kxc6 {[%clk 0:00:13.5]}
67... Kc8 {[%clk 0:00:08.2]} 68. Kc5 {[%clk 0:00:13.9]} 68... Kb7 {[%clk
0:00:08.6]} 69. Kb5 {[%clk 0:00:14.2]} 69... Kb8 {[%clk 0:00:09.3]} 70. Ka6
{[%clk 0:00:15.1]} 70... Ka8 {[%clk 0:00:09.7]} 71. Ka5 {[%clk 0:00:15.9]} 71...
Kb7 {[%clk 0:00:09.9]} 72. Kb5 {[%clk 0:00:16.8]} 72... Kb8 {[%clk 0:00:09.9]}
73. Kc5 {[%clk 0:00:16.8]} 73... Kb7 {[%clk 0:00:10.3]} 74. Kb5 {[%clk
0:00:16.8]} 1/2-1/2

[Event "Early-Titled-Tuesday-Blitz-October-24-2023"]
[Site "Chess.com"]
[Date "2023.10.24"]
[Round "7"]
[White "surrenderPLS"]
[Black "Aygehovit1992"]
[Result "0-1"]
[WhiteElo "2517"]
[BlackElo "2660"]
[TimeControl "180+1"]
[EndTime "9:16:38 PDT"]
[Termination "Aygehovit1992 won by resignation"]

1. e4 {[%clk 0:03:00.9]} 1... c5 {[%clk 0:02:59.7]} 2. Nf3 {[%clk 0:03:00.9]}
2... d6 {[%clk 0:03:00.1]} 3. d4 {[%clk 0:03:00]} 3... cxd4 {[%clk 0:03:00.4]}
4. Nxd4 {[%clk 0:03:00.9]} 4... Nf6 {[%clk 0:03:00.4]} 5. Nc3 {[%clk 0:03:01.2]}
5... g6 {[%clk 0:03:00.4]} 6. Be3 {[%clk 0:03:00.7]} 6... Nc6 {[%clk 0:03:00.5]}
7. f3 {[%clk 0:02:59.3]} 7... h5 {[%clk 0:03:00.2]} 8. Qd2 {[%clk 0:02:59]} 8...
Nxd4 {[%clk 0:03:00.3]} 9. Bxd4 {[%clk 0:02:58.7]} 9... Bh6 {[%clk 0:03:00.4]}
10. Be3 {[%clk 0:02:57.1]} 10... Bxe3 {[%clk 0:03:00.1]} 11. Qxe3 {[%clk
0:02:58]} 11... Be6 {[%clk 0:02:59.8]} 12. O-O-O {[%clk 0:02:57.2]} 12... Qa5
{[%clk 0:02:57.9]} 13. Bb5+ {[%clk 0:02:56.8]} 13... Kf8 {[%clk 0:02:57.9]} 14.
a3 {[%clk 0:02:44.6]} 14... Rc8 {[%clk 0:02:55.9]} 15. Be2 {[%clk 0:02:36.2]}
15... Kg7 {[%clk 0:02:50.5]} 16. Rd4 {[%clk 0:02:35.6]} 16... a6 {[%clk
0:02:44.7]} 17. Rhd1 {[%clk 0:02:33.7]} 17... Rc5 {[%clk 0:02:40.8]} 18. Nd5
{[%clk 0:01:49.9]} 18... Rhc8 {[%clk 0:01:52.5]} 19. R1d2 {[%clk 0:01:33.6]}
19... Bxd5 {[%clk 0:01:46.6]} 20. b4 {[%clk 0:01:29.3]} 20... Qc7 {[%clk
0:01:21.5]} 21. bxc5 {[%clk 0:01:22.4]} 21... Be6 {[%clk 0:01:21.3]} 22. cxd6
{[%clk 0:01:19]} 22... exd6 {[%clk 0:01:20.9]} 23. Rxd6 {[%clk 0:01:08.7]} 23...
Qe7 {[%clk 0:00:40.6]} 24. Kd1 {[%clk 0:00:54.2]} 24... Kh7 {[%clk 0:00:35.8]}
25. Ke1 {[%clk 0:00:52.4]} 25... Ne8 {[%clk 0:00:28.6]} 26. Rb6 {[%clk
0:00:47.4]} 26... Qh4+ {[%clk 0:00:27.6]} 27. Qf2 {[%clk 0:00:47.1]} 27... Qxh2
{[%clk 0:00:27.4]} 28. Rxb7 {[%clk 0:00:43.7]} 28... Nd6 {[%clk 0:00:27]} 29. g3
{[%clk 0:00:35.6]} 29... Qxf2+ {[%clk 0:00:26]} 30. Kxf2 {[%clk 0:00:35.4]}
30... Nxb7 {[%clk 0:00:26.1]} 31. Bxa6 {[%clk 0:00:36]} 31... Rc7 {[%clk
0:00:26.3]} 32. Bxb7 {[%clk 0:00:22.8]} 32... Rxb7 {[%clk 0:00:25.8]} 33. a4
{[%clk 0:00:20]} 33... Rb4 {[%clk 0:00:24.3]} 34. a5 {[%clk 0:00:17.7]} 34...
Ra4 {[%clk 0:00:24.4]} 35. c3 {[%clk 0:00:17.5]} 35... Rxa5 {[%clk 0:00:24.4]}
36. Ke3 {[%clk 0:00:17.7]} 36... Ra3 {[%clk 0:00:22]} 37. Kd4 {[%clk 0:00:16.5]}
37... Ra4+ {[%clk 0:00:22]} 38. Ke3 {[%clk 0:00:16.5]} 38... Kg7 {[%clk
0:00:14.5]} 39. Rd4 {[%clk 0:00:14.2]} 39... Ra3 {[%clk 0:00:13.9]} 40. Kd2
{[%clk 0:00:13.9]} 40... Ra2+ {[%clk 0:00:13.8]} 41. Ke3 {[%clk 0:00:13.9]}
41... g5 {[%clk 0:00:11.7]} 42. Rd2 {[%clk 0:00:11.9]} 42... Rxd2 {[%clk
0:00:10.5]} 43. Kxd2 {[%clk 0:00:11.5]} 43... f5 {[%clk 0:00:06.9]} 44. exf5
{[%clk 0:00:10.4]} 44... Bxf5 {[%clk 0:00:07.8]} 45. Ke3 {[%clk 0:00:10.8]}
45... Kf6 {[%clk 0:00:07.8]} 46. f4 {[%clk 0:00:09.7]} 46... g4 {[%clk
0:00:07.8]} 47. Kd4 {[%clk 0:00:07.9]} 47... Bc8 {[%clk 0:00:07.4]} 48. c4
{[%clk 0:00:08.2]} 48... Bb7 {[%clk 0:00:07.4]} 49. c5 {[%clk 0:00:06.2]} 49...
Kf5 {[%clk 0:00:07.4]} 50. Ke3 {[%clk 0:00:06]} 50... Bc6 {[%clk 0:00:07]} 51.
Kf2 {[%clk 0:00:04.8]} 51... Ke4 {[%clk 0:00:07]} 52. Ke2 {[%clk 0:00:04.9]}
52... Kd4 {[%clk 0:00:06.3]} 53. f5 {[%clk 0:00:05.4]} 53... Kxc5 {[%clk
0:00:06.2]} 54. Ke3 {[%clk 0:00:06.3]} 54... Kd6 {[%clk 0:00:05.4]} 55. Kf4
{[%clk 0:00:06.9]} 55... Ke7 {[%clk 0:00:05.8]} 56. Kg5 {[%clk 0:00:06.7]} 56...
Be8 {[%clk 0:00:05.5]} 57. Kh4 {[%clk 0:00:05.3]} 57... Kd6 {[%clk 0:00:05.5]}
58. Kg5 {[%clk 0:00:03.5]} 58... Ke5 {[%clk 0:00:05.7]} 59. Kh4 {[%clk
0:00:02.7]} 59... Ke4 {[%clk 0:00:05.8]} 60. f6 {[%clk 0:00:02.7]} 60... Kf3
{[%clk 0:00:05.6]} 61. Kg5 {[%clk 0:00:01.8]} 61... Kxg3 {[%clk 0:00:05.5]} 62.
f7 {[%clk 0:00:02]} 62... Bxf7 {[%clk 0:00:05.6]} 63. Kf6 {[%clk 0:00:02.9]}
63... Ba2 {[%clk 0:00:05.2]} 64. Ke7 {[%clk 0:00:03.8]} 64... h4 {[%clk
0:00:05.4]} 65. Kf6 {[%clk 0:00:04.7]} 65... h3 {[%clk 0:00:06.3]} 0-1

[Event "Early-Titled-Tuesday-Blitz-October-24-2023"]
[Site "Chess.com"]
[Date "2023.10.24"]
[Round "7"]
[White "Kostya0705"]
[Black "ilushka"]
[Result "1/2-1/2"]
[WhiteElo "2614"]
[BlackElo "2452"]
[TimeControl "180+1"]
[EndTime "9:16:39 PDT"]
[Termination "Game drawn - insufficient material"]

1. e4 {[%clk 0:03:00.9]} 1... e5 {[%clk 0:03:00.5]} 2. Nf3 {[%clk 0:03:01.3]}
2... Nc6 {[%clk 0:03:00.7]} 3. Bc4 {[%clk 0:03:01.8]} 3... Nf6 {[%clk 0:03:01]}
4. d4 {[%clk 0:03:01.7]} 4... exd4 {[%clk 0:02:59.6]} 5. e5 {[%clk 0:03:02.6]}
5... Ne4 {[%clk 0:02:46.4]} 6. O-O {[%clk 0:03:01.4]} 6... d5 {[%clk 0:02:44.9]}
7. Bb5 {[%clk 0:02:59.6]} 7... Bd7 {[%clk 0:02:35.7]} 8. Bxc6 {[%clk 0:02:56]}
8... bxc6 {[%clk 0:02:34]} 9. Nxd4 {[%clk 0:02:56.9]} 9... c5 {[%clk 0:02:26.6]}
10. Nb3 {[%clk 0:02:54.9]} 10... Bb5 {[%clk 0:02:14.8]} 11. Re1 {[%clk
0:02:53.2]} 11... c4 {[%clk 0:02:03.7]} 12. N3d2 {[%clk 0:02:52.1]} 12... Nxd2
{[%clk 0:02:01]} 13. Nxd2 {[%clk 0:02:53]} 13... Be7 {[%clk 0:01:58.8]} 14. f4
{[%clk 0:02:52]} 14... O-O {[%clk 0:01:52.2]} 15. Nf3 {[%clk 0:02:51.3]} 15...
c5 {[%clk 0:01:38.6]} 16. f5 {[%clk 0:02:50.7]} 16... Re8 {[%clk 0:01:37.6]} 17.
Bf4 {[%clk 0:02:49.7]} 17... Bf8 {[%clk 0:01:37.4]} 18. Qd2 {[%clk 0:02:44]}
18... Bd7 {[%clk 0:01:34.8]} 19. f6 {[%clk 0:02:28.8]} 19... gxf6 {[%clk
0:01:29.9]} 20. Qxd5 {[%clk 0:02:26.7]} 20... Bf5 {[%clk 0:01:12.4]} 21. Qxc4
{[%clk 0:02:24]} 21... fxe5 {[%clk 0:01:10.2]} 22. Bxe5 {[%clk 0:02:22.8]} 22...
Be6 {[%clk 0:01:05.1]} 23. Qf4 {[%clk 0:02:21.3]} 23... Bg7 {[%clk 0:00:58.6]}
24. Rad1 {[%clk 0:02:12]} 24... Qe7 {[%clk 0:00:52]} 25. Qg3 {[%clk 0:01:57.7]}
25... f6 {[%clk 0:00:51.1]} 26. Bc3 {[%clk 0:01:53.5]} 26... Qf7 {[%clk
0:00:50]} 27. b3 {[%clk 0:01:49.3]} 27... Bd5 {[%clk 0:00:45.9]} 28. Rf1 {[%clk
0:01:49]} 28... Re2 {[%clk 0:00:38.8]} 29. Rxd5 {[%clk 0:01:41.4]} 29... Qxd5
{[%clk 0:00:23.9]} 30. Bxf6 {[%clk 0:01:41.1]} 30... Qb7 {[%clk 0:00:22.2]} 31.
Nh4 {[%clk 0:01:23.3]} 31... Kh8 {[%clk 0:00:15.5]} 32. Qh3 {[%clk 0:01:11.2]}
32... Bxf6 {[%clk 0:00:13.1]} 33. Rxf6 {[%clk 0:01:07.7]} 33... Rg8 {[%clk
0:00:13.6]} 34. Rf5 {[%clk 0:00:21.6]} 34... Qe4 {[%clk 0:00:10.1]} 35. Qc3+
{[%clk 0:00:14.2]} 35... Qd4+ {[%clk 0:00:09.5]} 36. Qxd4+ {[%clk 0:00:14.8]}
36... cxd4 {[%clk 0:00:10]} 37. Rc5 {[%clk 0:00:09.6]} 37... Rg4 {[%clk
0:00:08]} 38. g3 {[%clk 0:00:09]} 38... Kg7 {[%clk 0:00:05.9]} 39. Nf3 {[%clk
0:00:08.7]} 39... Rge4 {[%clk 0:00:04.7]} 40. Rc4 {[%clk 0:00:08]} 40... d3
{[%clk 0:00:03.8]} 41. cxd3 {[%clk 0:00:07]} 41... Rxc4 {[%clk 0:00:03.9]} 42.
dxc4 {[%clk 0:00:07.3]} 42... Rxa2 {[%clk 0:00:04.5]} 43. Kf1 {[%clk 0:00:07.2]}
43... Rb2 {[%clk 0:00:04.4]} 44. Nd4 {[%clk 0:00:07.6]} 44... Rxh2 {[%clk
0:00:04.4]} 45. c5 {[%clk 0:00:08.1]} 45... Rd2 {[%clk 0:00:03.4]} 46. Nb5
{[%clk 0:00:06.4]} 46... Rc2 {[%clk 0:00:02.8]} 47. b4 {[%clk 0:00:05.8]} 47...
a5 {[%clk 0:00:02.5]} 48. Na3 {[%clk 0:00:02]} 48... Rc1+ {[%clk 0:00:02.9]} 49.
Ke2 {[%clk 0:00:02.3]} 49... axb4 {[%clk 0:00:03.8]} 50. Nb5 {[%clk 0:00:02.4]}
50... Rxc5 {[%clk 0:00:03.3]} 51. Nd4 {[%clk 0:00:03.1]} 51... Rc4 {[%clk
0:00:03.1]} 52. Kd3 {[%clk 0:00:04]} 52... Rc3+ {[%clk 0:00:03.3]} 53. Ke4
{[%clk 0:00:03.8]} 53... Rxg3 {[%clk 0:00:03.8]} 54. Nf5+ {[%clk 0:00:03.5]}
54... Kf6 {[%clk 0:00:03.9]} 55. Nxg3 {[%clk 0:00:04.4]} 55... Kg5 {[%clk
0:00:04.2]} 56. Kd3 {[%clk 0:00:04.6]} 56... Kg4 {[%clk 0:00:04.7]} 57. Ne4
{[%clk 0:00:04.8]} 57... Kf4 {[%clk 0:00:02.5]} 58. Nf2 {[%clk 0:00:03.2]} 58...
h5 {[%clk 0:00:01.8]} 59. Kc4 {[%clk 0:00:03.2]} 59... Kf3 {[%clk 0:00:02.5]}
60. Nh3 {[%clk 0:00:02.5]} 60... Kg3 {[%clk 0:00:02.1]} 61. Ng5 {[%clk
0:00:02.6]} 61... Kg4 {[%clk 0:00:02.2]} 62. Ne4 {[%clk 0:00:03]} 62... h4
{[%clk 0:00:02]} 63. Kxb4 {[%clk 0:00:03.6]} 63... Kf3 {[%clk 0:00:01.8]} 64.
Ng5+ {[%clk 0:00:03.6]} 64... Kg4 {[%clk 0:00:02]} 65. Ne4 {[%clk 0:00:04.2]}
65... Kf4 {[%clk 0:00:02.3]} 66. Nf2 {[%clk 0:00:04.3]} 66... Kf3 {[%clk
0:00:01.9]} 67. Nh3 {[%clk 0:00:03.7]} 67... Kg4 {[%clk 0:00:02.8]} 68. Nf2+
{[%clk 0:00:04.1]} 68... Kg3 {[%clk 0:00:03.4]} 69. Ne4+ {[%clk 0:00:04.6]}
69... Kg2 {[%clk 0:00:03.9]} 70. Ng5 {[%clk 0:00:04.1]} 70... Kg3 {[%clk
0:00:03.8]} 71. Kc3 {[%clk 0:00:04.8]} 71... Kg4 {[%clk 0:00:04.3]} 72. Ne4
{[%clk 0:00:05.3]} 72... Kf3 {[%clk 0:00:04.2]} 73. Ng5+ {[%clk 0:00:04.9]}
73... Kf4 {[%clk 0:00:05.1]} 74. Nh3+ {[%clk 0:00:05]} 74... Kg3 {[%clk
0:00:05.6]} 75. Ng5 {[%clk 0:00:04.9]} 75... Kg4 {[%clk 0:00:05.3]} 76. Ne4
{[%clk 0:00:05.3]} 76... h3 {[%clk 0:00:06.2]} 77. Nf2+ {[%clk 0:00:05.2]} 77...
Kg3 {[%clk 0:00:07.1]} 78. Nxh3 {[%clk 0:00:06.1]} 1/2-1/2